fUSD/lending_fUSD_20240630
["ID","MTS","AMOUNT","RATE_DAILY","PERIOD"]
[330741211,1719749448582,-500.0,0.00014097,3]
[330741212,1719749448592,-798.34,0.00014097,3]
[330741213,1719749448602,-500.0,0.00014097,3]
[330741214,1719749448612,-500.0,0.00014097,3]
[330741215,1719749448623,-641.55,0.00014097,3]
[330741216,1719749448634,-500.0,0.00014097,3]
[330741217,1719749448643,-500.0,0.00014097,3]
[330741218,1719749448653,-500.0,0.00014097,3]
[330741219,1719749448662,-500.0,0.00014097,3]
[330741220,1719749448672,-500.0,0.00014097,3]
[330741221,1719749448682,-500.0,0.00014097,3]
[330741222,1719749448691,-500.0,0.00014097,3]
[330741223,1719749448701,-500.0,0.00014097,3]
[330741224,1719749448710,-632.34,0.00014097,3]
[330741225,1719749448719,-500.0,0.00014097,3]
[330741226,1719749448729,-616.18471977,0.00014097,3]
[330741227,1719749448738,-500.0,0.00014097,3]
[330741228,1719749448748,-893.43,0.00014097,3]
[330741229,1719749448757,-500.0,0.00014097,3]
[330741230,1719749448766,-500.0,0.00014097,3]
[330741231,1719749448777,-500.0,0.00014097,3]
[330741232,1719749448786,-500.0,0.00014097,3]
[330741233,1719749448797,-500.0,0.00014097,3]
[330741234,1719749448807,-500.0,0.00014097,3]
[330741235,1719749448816,-500.0,0.00014097,3]
[330741236,1719749448826,-720.5,0.00014097,3]
[330741237,1719749448835,-500.0,0.00014097,3]
[330741238,1719749448844,-533.37,0.00014097,3]
[330741239,1719749448853,-676.38,0.00014097,3]
[330741240,1719749448863,-500.0,0.00014097,3]
[330741241,1719749448872,-500.0,0.00014097,3]
[330741242,1719749448882,-618.14,0.00014097,3]
[330741243,1719749448891,-500.0,0.00014097,3]
[330741244,1719749448901,-500.0,0.00014097,3]
[330741245,1719749448910,-500.0,0.00014097,3]
[330741246,1719749448919,-500.0,0.00014097,3]
[330741247,1719749448929,-500.0,0.00014097,3]
[330741248,1719749448938,-500.0,0.00014097,3]
[330741249,1719749448947,-697.71,0.00014097,3]
[330741250,1719749448958,-500.0,0.00014097,3]
[330741251,1719749448967,-269.60122167,0.00014097,3]
[330741252,1719749448977,-910.98,0.00014097,3]
[330741253,1719749448987,-1394.19,0.00014097,3]
[330741254,1719749448996,-500.0,0.00014097,3]
[330741255,1719749449006,-500.0,0.00014097,3]
[330741256,1719749449015,-500.0,0.00014097,3]
[330741257,1719749449025,-500.0,0.00014097,3]
[330741258,1719749449034,-500.0,0.00014097,3]
[330741259,1719749449044,-1131.49,0.00014097,3]
[330741260,1719749449054,-500.0,0.00014097,3]
[330741261,1719749449064,-500.0,0.00014097,3]
[330741262,1719749449073,-500.0,0.00014097,3]
[330741263,1719749449083,-500.0,0.00014097,3]
[330741264,1719749449092,-500.0,0.00014097,3]
[330741265,1719749449101,-600.41,0.00014097,3]
[330741266,1719749449110,-627.08,0.00014097,3]
[330741267,1719749449119,-589.78,0.00014097,3]
[330741268,1719749449128,-703.71,0.00014097,3]
[330741269,1719749449137,-500.0,0.00014097,3]
[330741270,1719749449146,-500.0,0.00014097,3]
[330741271,1719749449156,-500.0,0.00014097,3]
[330741272,1719749449165,-500.0,0.00014097,3]
[330741273,1719749449174,-500.0,0.00014097,3]
[330741274,1719749449183,-500.0,0.00014097,3]
[330741275,1719749449193,-603.32,0.00014097,3]
[330741276,1719749449202,-716.83,0.00014097,3]
[330741277,1719749449211,-982.49,0.00014097,3]
[330741278,1719749449220,-500.0,0.00014097,3]
[330741279,1719749449230,-500.0,0.00014097,3]
[330741280,1719749449239,-500.0,0.00014097,3]
[330741281,1719749449249,-481.68,0.00014097,3]
[330741282,1719749449258,-500.0,0.00014097,3]
[330741283,1719749449267,-942.91,0.00014097,3]
[330741284,1719749449276,-500.0,0.00014097,3]
[330741285,1719749449285,-500.0,0.00014097,3]
[330741286,1719749449295,-6097.89,0.00014097,3]
[330741287,1719749449304,-500.0,0.00014097,3]
[330741288,1719749449313,-500.0,0.00014097,3]
[330741289,1719749449322,-536.67,0.00014097,3]
[330741290,1719749449331,-1147.63,0.00014097,3]
[330741291,1719749449340,-500.0,0.00014097,3]
[330741292,1719749449349,-285.84,0.00014097,3]
[330741293,1719749449359,-500.0,0.00014097,3]
[330741294,1719749449368,-619.53,0.00014097,3]
[330741295,1719749449377,-500.0,0.00014097,3]
[330741296,1719749449386,-500.0,0.00014097,3]
[330741297,1719749449395,-765.25,0.00014097,3]
[330741298,1719749449405,-587.79,0.00014097,3]
[330741299,1719749449413,-500.0,0.00014097,3]
[330741300,1719749449423,-500.0,0.00014097,3]
[330741301,1719749449432,-500.0,0.00014097,3]
[330741302,1719749449441,-500.0,0.00014097,3]
[330741303,1719749449453,-500.0,0.00014097,3]
[330741304,1719749449464,-500.0,0.00014097,3]
[330741305,1719749449474,-500.0,0.00014097,3]
[330741306,1719749449483,-500.0,0.00014097,3]
[330741307,1719749449493,-638.38,0.00014097,3]
[330741308,1719749449502,-500.0,0.00014097,3]
[330741309,1719749449512,-500.0,0.00014097,3]
[330741310,1719749449521,-500.0,0.00014097,3]
[330741311,1719749449534,-500.0,0.00014097,3]
[330741312,1719749449543,-500.0,0.00014097,3]
[330741313,1719749449553,-500.0,0.00014097,3]
[330741314,1719749449563,-500.0,0.00014097,3]
[330741315,1719749449572,-500.0,0.00014097,3]
[330741316,1719749449581,-500.0,0.00014097,3]
[330741317,1719749449591,-500.0,0.00014097,3]
[330741318,1719749449600,-500.0,0.00014097,3]
[330741319,1719749449609,-500.0,0.00014097,3]
[330741320,1719749449619,-500.0,0.00014097,3]
[330741321,1719749449629,-655.13,0.00014097,3]
[330741322,1719749449638,-500.0,0.00014097,3]
[330741323,1719749449648,-672.32,0.00014097,3]
[330741324,1719749449657,-500.0,0.00014097,3]
[330741325,1719749449667,-500.0,0.00014097,3]
[330741326,1719749449676,-500.0,0.00014097,3]
[330741327,1719749449685,-585.62,0.00014097,3]
[330741328,1719749449695,-500.0,0.00014097,3]
[330741329,1719749449704,-500.0,0.00014097,3]
[330741330,1719749449714,-470.84,0.00014097,3]
[330741331,1719749449724,-500.0,0.00014097,3]
[330741332,1719749449734,-500.0,0.00014097,3]
[330741333,1719749449743,-849.57,0.00014097,3]
[330741334,1719749449753,-500.0,0.00014097,3]
[330741335,1719749449762,-714.79,0.00014097,3]
[330741336,1719749449771,-694.86,0.00014097,3]
[330741337,1719749449782,-500.0,0.00014097,3]
[330741338,1719749449791,-500.0,0.00014097,3]
[330741339,1719749449803,-500.0,0.00014097,3]
[330741340,1719749449814,-500.0,0.00014097,3]
[330741341,1719749449823,-500.0,0.00014097,3]
[330741342,1719749449833,-894.93,0.00014097,3]
[330741343,1719749449842,-500.0,0.00014097,3]
[330741344,1719749449852,-751.13,0.00014097,3]
[330741345,1719749449861,-500.0,0.00014097,3]
[330741346,1719749449871,-500.0,0.00014097,3]
[330741347,1719749449879,-500.0,0.00014097,3]
[330741348,1719749449889,-500.0,0.00014097,3]
[330741349,1719749449898,-500.0,0.00014097,3]
[330741350,1719749449908,-500.0,0.00014097,3]
[330741351,1719749449918,-587.85,0.00014097,3]
[330741352,1719749449928,-500.0,0.00014097,3]
[330741353,1719749449937,-500.0,0.00014097,3]
[330741354,1719749449947,-500.0,0.00014097,3]
[330741355,1719749449957,-500.0,0.00014097,3]
[330741356,1719749449967,-1571.64,0.00014097,3]
[330741357,1719749449976,-500.0,0.00014097,3]
[330741358,1719749449986,-500.0,0.00014097,3]
[330741359,1719749449996,-872.17,0.00014097,3]
[330741360,1719749450006,-500.0,0.00014097,3]
[330741361,1719749450016,-500.0,0.00014097,3]
[330741362,1719749450027,-500.0,0.00014097,3]
[330741363,1719749450036,-500.0,0.00014097,3]
[330741364,1719749450045,-500.0,0.00014097,3]
[330741365,1719749450054,-500.0,0.00014097,3]
[330741366,1719749450067,-500.0,0.00014097,3]
[330741367,1719749450077,-500.0,0.00014097,3]
[330741368,1719749450086,-887.07,0.00014097,3]
[330741369,1719749450096,-500.0,0.00014097,3]
[330741370,1719749450105,-500.0,0.00014097,3]
[330741371,1719749450114,-500.0,0.00014097,3]
[330741372,1719749450124,-500.0,0.00014097,3]
[330741373,1719749450134,-786.26,0.00014097,3]
[330741374,1719749450144,-500.0,0.00014097,3]
[330741375,1719749450154,-1195.13,0.00014097,3]
[330741376,1719749450163,-542.36,0.00014097,3]
[330741377,1719749450174,-500.0,0.00014097,3]
[330741378,1719749450183,-500.0,0.00014097,3]
[330741379,1719749450192,-500.0,0.00014097,3]
[330741380,1719749450202,-500.0,0.00014097,3]
[330741381,1719749450211,-575.26,0.00014097,3]
[330741382,1719749450221,-869.87,0.00014097,3]
[330741383,1719749450230,-160.38,0.00014097,3]
[330741384,1719749450240,-690.9,0.00014097,3]
[330741385,1719749450249,-500.0,0.00014097,3]
[330741386,1719749450258,-500.0,0.00014097,3]
[330741387,1719749450267,-925.16,0.00014097,3]
[330741388,1719749450278,-771.0,0.00014097,3]
[330741389,1719749450287,-500.0,0.00014097,3]
[330741390,1719749450361,-500.0,0.00014097,3]
[330741391,1719749450371,-500.0,0.00014097,3]
[330741392,1719749450380,-500.0,0.00014097,3]
[330741393,1719749450389,-500.0,0.00014097,3]
[330741394,1719749450399,-867.1,0.00014097,3]
[330741395,1719749450410,-543.14,0.00014097,3]
[330741396,1719749450420,-500.0,0.00014097,3]
[330741397,1719749450430,-500.58,0.00014097,3]
[330741398,1719749450439,-644.13,0.00014097,3]
[330741399,1719749450450,-500.0,0.00014097,3]
[330741400,1719749450461,-500.0,0.00014097,3]
[330741401,1719749450470,-500.0,0.00014097,3]
[330741402,1719749450479,-566.57,0.00014097,3]
[330741403,1719749450488,-500.0,0.00014097,3]
[330741404,1719749450498,-500.0,0.00014097,3]
[330741405,1719749450508,-995.53,0.00014097,3]
[330741406,1719749450516,-500.0,0.00014097,3]
[330741407,1719749450527,-500.0,0.00014097,3]
[330741408,1719749450537,-500.0,0.00014097,3]
[330741409,1719749450546,-1332.91,0.00014097,3]
[330741410,1719749450555,-500.0,0.00014097,3]
[330741411,1719749450565,-624.87,0.00014097,3]
[330741412,1719749450575,-500.0,0.00014097,3]
[330741413,1719749450584,-500.0,0.00014097,3]
[330741414,1719749450593,-712.17,0.00014097,3]
[330741415,1719749450602,-500.0,0.00014097,3]
[330741416,1719749450613,-500.0,0.00014097,3]
[330741417,1719749450625,-888.81,0.00014097,3]
[330741418,1719749450637,-500.0,0.00014097,3]
[330741419,1719749450647,-500.0,0.00014097,3]
[330741420,1719749450658,-335.64123163,0.00014097,3]
[330741421,1719749450666,-1320.27,0.00014097,3]
[330741422,1719749450676,-500.0,0.00014097,3]
[330741423,1719749450685,-500.0,0.00014097,3]
[330741424,1719749450694,-945.47,0.00014097,3]
[330741425,1719749450703,-500.0,0.00014097,3]
[330741426,1719749450712,-500.0,0.00014097,3]
[330741427,1719749450721,-1479.37,0.00014097,3]
[330741428,1719749450730,-500.0,0.00014097,3]
[330741429,1719749450740,-500.0,0.00014097,3]
[330741430,1719749450750,-500.0,0.00014097,3]
[330741431,1719749450759,-500.0,0.00014097,3]
[330741432,1719749450768,-500.0,0.00014097,3]
[330741433,1719749450778,-1122.29,0.00014097,3]
[330741434,1719749450787,-500.0,0.00014097,3]
[330741435,1719749450800,-500.0,0.00014097,3]
[330741436,1719749450809,-500.0,0.00014097,3]
[330741437,1719749450818,-521.2,0.00014097,3]
[330741438,1719749450828,-500.0,0.00014097,3]
[330741439,1719749450837,-579.9,0.00014097,3]
[330741440,1719749450847,-500.0,0.00014097,3]
[330741441,1719749450858,-500.0,0.00014097,3]
[330741442,1719749450867,-500.0,0.00014097,3]
[330741443,1719749450878,-500.0,0.00014097,3]
[330741444,1719749450887,-1126.41,0.00014097,3]
[330741445,1719749450898,-500.0,0.00014097,3]
[330741446,1719749450909,-1126.68,0.00014097,3]
[330741447,1719749450918,-597.5,0.00014097,3]
[330741448,1719749450927,-500.0,0.00014097,3]
[330741449,1719749450937,-500.0,0.00014097,3]
[330741450,1719749450946,-500.0,0.00014097,3]
[330741451,1719749450955,-500.0,0.00014097,3]
[330741452,1719749450965,-500.0,0.00014097,3]
[330741453,1719749450974,-769.06,0.00014097,3]
[330741454,1719749450983,-544.92785892,0.00014097,3]
[330741455,1719749450992,-500.0,0.00014097,3]
[330741456,1719749451002,-557.73,0.00014097,3]
[330741457,1719749451011,-500.0,0.00014097,3]
[330741458,1719749451020,-500.0,0.00014097,3]
[330741459,1719749451030,-500.0,0.00014097,3]
[330741460,1719749451039,-500.0,0.00014097,3]
[330741461,1719749451048,-761.47,0.00014097,3]
[330741462,1719749451058,-500.0,0.00014097,3]
[330741463,1719749451067,-500.0,0.00014097,3]
[330741464,1719749451077,-500.0,0.00014097,3]
[330741465,1719749451086,-500.0,0.00014097,3]
[330741466,1719749451095,-500.0,0.00014097,2]
[330741467,1719749451104,-500.0,0.00014097,3]
[330741468,1719749451114,-558.87,0.00014097,3]
[330741469,1719749451123,-500.0,0.00014097,3]
[330741470,1719749451132,-500.0,0.00014097,3]
[330741471,1719749451142,-500.0,0.00014097,3]
[330741472,1719749451151,-500.0,0.00014097,3]
[330741473,1719749451160,-500.0,0.00014097,3]
[330741474,1719749451169,-500.0,0.00014097,3]
[330741475,1719749451179,-588.26,0.00014097,3]
[330741476,1719749451188,-500.0,0.00014097,3]
[330741477,1719749451197,-500.0,0.00014097,3]
[330741478,1719749451206,-500.0,0.00014097,3]
[330741479,1719749451215,-500.0,0.00014097,3]
[330741480,1719749451224,-500.0,0.00014097,3]
[330741481,1719749451234,-500.0,0.00014097,3]
[330741482,1719749451243,-656.99,0.00014097,3]
[330741483,1719749451252,-500.0,0.00014097,3]
[330741484,1719749451261,-500.0,0.00014097,3]
[330741485,1719749451271,-1601.59,0.00014097,3]
[330741486,1719749451280,-500.0,0.00014097,3]
[330741487,1719749451289,-485.49,0.00014097,3]
[330741488,1719749451299,-500.0,0.00014097,3]
[330741489,1719749451308,-500.0,0.00014097,3]
[330741490,1719749451317,-500.0,0.00014097,3]
[330741491,1719749451326,-500.0,0.00014097,3]
[330741492,1719749451335,-500.0,0.00014097,3]
[330741493,1719749451344,-500.0,0.00014097,3]
[330741494,1719749451353,-500.0,0.00014097,3]
[330741495,1719749451362,-500.0,0.00014097,3]
[330741496,1719749451372,-500.0,0.00014097,3]
[330741497,1719749451381,-905.67,0.00014097,3]
[330741498,1719749451390,-542.63,0.00014097,3]
[330741499,1719749451399,-771.67,0.00014097,3]
[330741500,1719749451408,-576.97,0.00014097,3]
[330741501,1719749451418,-500.0,0.00014097,3]
[330741502,1719749451427,-500.0,0.00014097,3]
[330741503,1719749451436,-627.87,0.00014097,3]
[330741504,1719749451447,-560.58,0.00014097,3]
[330741505,1719749451462,-753.24,0.00014097,3]
[330741506,1719749451471,-500.0,0.00014097,3]
[330741507,1719749451481,-500.0,0.00014097,3]
[330741508,1719749451490,-500.0,0.00014097,3]
[330741509,1719749451502,-500.0,0.00014097,3]
[330741510,1719749451511,-500.0,0.00014097,3]
[330741511,1719749451520,-500.0,0.00014098,3]
[330741512,1719749451532,-675.38,0.00014098,3]
[330741513,1719749451541,-604.09,0.00014098,3]
[330741514,1719749451551,-331.43,0.00014098,3]
[330741515,1719749451560,-275.50475568,0.00014098,3]
[330741516,1719749451570,-500.0,0.00014098,3]
[330741517,1719749451579,-500.0,0.00014098,3]
[330741518,1719749451589,-500.0,0.00014098,3]
[330741519,1719749451598,-500.0,0.00014098,3]
[330741520,1719749451607,-500.0,0.00014098,3]
[330741521,1719749451617,-500.0,0.00014098,3]
[330741522,1719749451627,-500.0,0.00014098,3]
[330741523,1719749451636,-500.0,0.00014098,3]
[330741524,1719749451645,-500.0,0.00014098,3]
[330741525,1719749451654,-500.0,0.00014098,3]
[330741526,1719749451663,-500.0,0.00014098,3]
[330741527,1719749451673,-400.54896087,0.00014098,3]
[330741528,1719749451682,-500.0,0.00014098,3]
[330741529,1719749451692,-500.0,0.00014098,3]
[330741530,1719749451702,-500.0,0.00014098,3]
[330741531,1719749451711,-500.0,0.00014098,3]
[330741532,1719749451721,-511.08,0.00014098,3]
[330741533,1719749451731,-500.0,0.00014098,3]
[330741534,1719749451740,-500.0,0.00014098,3]
[330741535,1719749451750,-596.6,0.00014098,3]
[330741536,1719749451759,-500.0,0.00014098,3]
[330741537,1719749451769,-423.19845523,0.00014098,3]
[330741538,1719749451779,-500.0,0.00014098,3]
[330741539,1719749451789,-500.0,0.00014098,3]
[330741540,1719749451800,-512.38,0.00014098,3]
[330741541,1719749451810,-500.0,0.00014098,3]
[330741542,1719749451820,-500.0,0.00014098,3]
[330741543,1719749451829,-500.0,0.00014098,3]
[330741544,1719749451838,-500.0,0.00014098,3]
[330741545,1719749451848,-500.0,0.00014098,3]
[330741546,1719749451858,-562.17,0.00014098,3]
[330741547,1719749451867,-500.0,0.00014098,3]
[330741548,1719749451877,-550.14,0.00014098,3]
[330741549,1719749451887,-778.12,0.00014098,3]
[330741550,1719749451896,-500.0,0.00014098,3]
[330741551,1719749451906,-395.51,0.00014098,3]
[330741552,1719749451917,-500.0,0.00014098,3]
[330741553,1719749451926,-500.0,0.00014098,3]
[330741554,1719749451936,-500.0,0.00014098,3]
[330741555,1719749451946,-935.91,0.00014098,3]
[330741556,1719749451955,-500.0,0.00014098,3]
[330741557,1719749451965,-500.0,0.00014098,3]
[330741558,1719749451974,-500.0,0.00014098,3]
[330741559,1719749451983,-500.0,0.00014098,3]
[330741560,1719749451993,-650.86,0.00014098,3]
[330741561,1719749452003,-503.38,0.00014098,3]
[330741562,1719749452013,-500.0,0.00014098,3]
[330741563,1719749452022,-500.0,0.00014098,3]
[330741564,1719749452033,-500.0,0.00014098,3]
[330741565,1719749452042,-500.0,0.00014098,3]
[330741566,1719749452052,-500.0,0.00014098,3]
[330741567,1719749452061,-500.0,0.00014098,3]
[330741568,1719749452070,-817.33,0.00014098,3]
[330741569,1719749452080,-500.0,0.00014098,3]
[330741570,1719749452089,-645.13,0.00014098,3]
[330741571,1719749452099,-571.01,0.00014098,3]
[330741572,1719749452108,-500.0,0.00014098,3]
[330741573,1719749452117,-833.13,0.00014098,3]
[330741574,1719749452126,-614.08,0.00014098,3]
[330741575,1719749452136,-507.18,0.00014098,3]
[330741576,1719749452145,-500.0,0.00014098,3]
[330741577,1719749452154,-787.64,0.00014098,3]
[330741578,1719749452165,-500.0,0.00014098,3]
[330741579,1719749452174,-500.0,0.00014098,3]
[330741580,1719749452184,-682.87,0.00014098,3]
[330741581,1719749452193,-795.53,0.00014098,3]
[330741582,1719749452203,-500.0,0.00014098,3]
[330741583,1719749452213,-500.0,0.00014098,3]
[330741584,1719749452222,-805.15,0.00014098,3]
[330741585,1719749452232,-737.33,0.00014098,3]
[330741586,1719749452242,-749.6,0.00014098,3]
[330741587,1719749452251,-500.0,0.00014098,3]
[330741588,1719749452261,-537.13,0.00014098,3]
[330741589,1719749452281,-500.0,0.00014098,3]
[330741590,1719749452292,-1005.25,0.00014098,3]
[330741591,1719749452302,-500.0,0.00014098,3]
[330741592,1719749452312,-500.0,0.00014098,3]
[330741593,1719749452321,-586.87,0.00014098,3]
[330741594,1719749452330,-500.0,0.00014098,3]
[330741595,1719749452340,-500.0,0.00014098,3]
[330741596,1719749452349,-500.0,0.00014098,3]
[330741597,1719749452358,-810.02,0.00014098,3]
[330741598,1719749452368,-500.0,0.00014098,3]
[330741599,1719749452378,-500.0,0.00014098,3]
[330741600,1719749452387,-812.58,0.00014098,3]
[330741601,1719749452397,-500.0,0.00014098,3]
[330741602,1719749452407,-500.0,0.00014098,3]
[330741603,1719749452416,-646.62,0.00014098,3]
[330741604,1719749452426,-534.13,0.00014098,3]
[330741605,1719749452435,-576.55,0.00014098,3]
[330741606,1719749452445,-500.0,0.00014098,3]
[330741607,1719749452457,-624.36,0.00014098,3]
[330741608,1719749452467,-500.0,0.00014098,3]
[330741609,1719749452477,-748.27,0.00014098,3]
[330741610,1719749452487,-572.02,0.00014098,3]
[330741611,1719749452498,-500.0,0.00014098,3]
[330741612,1719749452507,-78.54153847,0.00014098,3]
[330741613,1719749452540,-474.79846153,0.00014098,3]
[330741614,1719749452550,-252.31290878,0.00014098,3]
[330741615,1719749452562,-247.68709122,0.00014098,3]
[330741616,1719749452572,-500.0,0.00014098,3]
[330741617,1719749452582,-500.0,0.00014098,3]
[330741618,1719749452592,-25.52890878,0.00014098,3]
[330741619,1719749452854,-474.47109122,0.00014098,3]
[330741620,1719749452868,-500.0,0.00014098,3]
[330741621,1719749452878,-500.0,0.00014098,3]
[330741622,1719749452887,-597.07,0.00014098,3]
[330741623,1719749452898,-188.37,0.00014098,3]
[330741624,1719749452907,-500.0,0.00014098,3]
[330741625,1719749452916,-127.76699454,0.00014098,3]
[330741626,1719749452929,-563.33300546,0.00014098,3]
[330741627,1719749452939,-244.16701454,0.00014098,3]
[330741628,1719749452960,-255.83298546,0.00014098,3]
[330741629,1719749452970,-205.92246333,0.00014098,3]
[330741630,1719749452982,-440.43753667,0.00014098,3]
[330741631,1719749452993,-788.66,0.00014098,3]
[330741632,1719749453003,-390.10631333,0.00014098,3]
[330741633,1719749453014,-339.01368667,0.00014098,3]
[330741634,1719749453024,-500.0,0.00014098,3]
[330741635,1719749453035,-500.0,0.00014098,3]
[330741636,1719749453044,-316.04067776,0.00014098,3]
[330741637,1719749453128,-183.95932224,0.00014098,3]
[330741638,1719749453138,-1019.96109936,0.00014098,3]
[330741639,1719749453156,-141.75890064,0.00014098,3]
[330741640,1719749453166,-358.24109936,0.00014098,3]
[330741641,1719749453183,-141.75890064,0.00014098,3]
[330741642,1719749453193,-202.68907836,0.00014098,3]
[330741643,1719749453205,-297.31092164,0.00014098,3]
[330741644,1719749453215,-536.12,0.00014098,3]
[330741645,1719749453224,-198.06632436,0.00014098,3]
[330741646,1719749453236,-306.94367564,0.00014098,3]
[330741647,1719749453246,-847.97,0.00014098,3]
[330741648,1719749453257,-506.38183358,0.00014098,3]
[330741649,1719749453267,-1023.07,0.00014098,3]
[330741650,1719749453279,-752.33,0.00014098,3]
[330741651,1719749453288,-625.06,0.00014098,3]
[330741652,1719749453297,-956.99,0.00014098,3]
[330741653,1719749453313,-726.12,0.00014098,3]
[330741654,1719749453322,-732.82,0.00014098,3]
[330741655,1719749453331,-637.84,0.00014098,3]
[330741656,1719749453340,-979.59,0.00014098,3]
[330741657,1719749453350,-687.21,0.00014098,3]
[330741658,1719749453360,-707.73,0.00014098,3]
[330741659,1719749453369,-803.94,0.00014098,3]
[330741660,1719749453379,-1072.34,0.00014098,3]
[330741661,1719749453388,-555.72,0.00014098,3]
[330741662,1719749453398,-500.0,0.00014098,3]
[330741663,1719749453407,-602.39,0.00014098,3]
[330741664,1719749453417,-500.0,0.00014098,3]
[330741665,1719749453426,-1058.36,0.00014098,3]
[330741666,1719749453435,-500.0,0.00014098,3]
[330741667,1719749453445,-500.0,0.00014098,3]
[330741668,1719749453458,-500.0,0.00014098,3]
[330741669,1719749453468,-500.0,0.00014099,3]
[330741670,1719749453478,-606.07,0.00014099,3]
[330741671,1719749453487,-2367.86,0.00014099,3]
[330741672,1719749453498,-671.25,0.00014099,3]
[330741673,1719749453507,-906.72,0.00014099,3]
[330741674,1719749453516,-1841.38,0.00014099,3]
[330741675,1719749453530,-500.0,0.00014099,3]
[330741676,1719749453542,-1335.51,0.00014099,3]
[330741677,1719749453551,-500.0,0.00014099,3]
[330741678,1719749453561,-1062.94,0.00014099,3]
[330741679,1719749453571,-500.0,0.00014099,3]
[330741680,1719749453581,-500.0,0.00014099,3]
[330741681,1719749453591,-1609.66,0.00014099,3]
[330741682,1719749453601,-1258.54,0.00014099,3]
[330741683,1719749453611,-856.82,0.00014099,3]
[330741684,1719749453621,-1035.5,0.00014099,3]
[330741685,1719749453632,-818.87,0.00014099,3]
[330741686,1719749453642,-1466.81,0.00014099,3]
[330741687,1719749453652,-1616.81,0.00014099,3]
[330741688,1719749453662,-500.0,0.00014099,3]
[330741689,1719749453676,-500.0,0.00014099,3]
[330741690,1719749453686,-1667.15,0.00014099,3]
[330741691,1719749453697,-1145.38,0.00014099,3]
[330741692,1719749453708,-1658.59,0.00014099,3]
[330741693,1719749453720,-1135.16,0.00014099,3]
[330741694,1719749453732,-1950.31,0.00014099,3]
[330741695,1719749453744,-500.0,0.00014099,3]
[330741696,1719749453754,-16775.67,0.00014099,3]
[330741697,1719749453764,-1377.12,0.00014099,3]
[330741698,1719749453776,-1956.33,0.00014099,3]
[330741699,1719749453790,-2285.87,0.00014099,3]
[330741700,1719749453802,-1199.18,0.00014099,3]
[330741701,1719749453812,-1706.49,0.00014099,3]
[330741702,1719749453823,-1271.19,0.00014099,3]
[330741703,1719749453833,-528.7,0.00014099,3]
[330741704,1719749453844,-4535.49,0.00014099,3]
[330741705,1719749453854,-1404.71,0.00014099,3]
[330741706,1719749453864,-1120.02,0.00014099,3]
[330741707,1719749453875,-1281.85,0.00014099,3]
[330741708,1719749453885,-1889.43,0.00014099,3]
[330741709,1719749453896,-1033.46,0.00014099,3]
[330741710,1719749453908,-704.15,0.00014099,3]